bitfinex/quotes_SOLUSD_20250528
["timestamp","ask_amount","ask_price","bid_price","bid_amount"]
[1748392348103,15.80020227,176.83,176.81,9.08]
[1748392348419,15.80020227,176.85,176.81,9.08]
[1748392348420,15.80020227,176.82,176.81,9.08]
[1748392349174,21.4556711,176.82,176.81,9.08]
[1748392350306,21.4556711,176.82,176.76,90.6327]
[1748392350619,21.4556711,176.82,176.75,0.14216157]
[1748392350620,15.80020227,176.77,176.75,43.86]
[1748392350804,15.80020227,176.76,176.75,43.86]
[1748392351289,15.80020227,176.77,176.75,43.86]
[1748392351723,19.79414092,176.82,176.75,43.86]
[1748392352020,15.80020227,176.79,176.75,43.86]
[1748392352689,21.4566467,176.79,176.75,43.86]
[1748392352893,5.65644443,176.79,176.75,43.86]
[1748392354126,21.45636107,176.8,176.75,43.86]
[1748392354897,15.80020227,176.81,176.76,0.14216157]
[1748392355614,21.45592946,176.82,176.76,115.14216157]
[1748392356005,5.65572719,176.82,176.76,120.79943764]
[1748392356906,15.80020227,176.83,176.76,120.79943764]
[1748392357112,15.80020227,176.86,176.79,26.0]
[1748392357325,21.45407234,176.87,176.8,34.94216157]
[1748392357625,14.13184903,176.91,176.83,0.14216157]
[1748392357626,5.65360461,176.88,176.83,0.14216157]
[1748392357922,5.65360461,176.88,176.84,34.8]
[1748392359203,5.65291124,176.9,176.84,36.3139]
[1748392359625,21.45311351,176.9,176.84,36.3139]
[1748392360216,15.80020227,176.89,176.84,36.3139]
[1748392361127,5.65291124,176.9,176.84,34.8]
[1748392361128,15.80020227,176.86,176.84,34.8]
[1748392362016,15.80020227,176.87,176.84,34.8]
[1748392362219,15.80020227,176.85,176.81,9.08]
[1748392362407,15.80020227,176.82,176.81,9.08]
[1748392362607,15.80020227,176.82,176.81,43.86]
[1748392362803,15.80020227,176.82,176.81,9.08]
[1748392363023,15.80020227,176.82,176.81,43.86]
[1748392363506,15.80020227,176.84,176.81,43.86]
[1748392364235,5.65482922,176.84,176.81,43.86]
[1748392365108,21.45503149,176.84,176.81,43.86]
[1748392367022,5.65482922,176.84,176.81,69.86]
[1748392367936,21.45503149,176.84,176.81,69.86]
[1748392368316,21.45503149,176.84,176.81,158.86]
[1748392371419,15.80020227,176.83,176.81,158.86]
[1748392371616,15.80020227,176.82,176.81,9.08]
[1748392372841,21.4556711,176.82,176.81,9.08]
[1748392373634,5.65546883,176.82,176.81,9.08]
[1748392373945,21.4556711,176.82,176.81,9.08]
[1748392375819,21.4556711,176.82,176.76,9.08]
[1748392375820,54.24399205,176.82,176.76,9.08]
[1748392376058,15.80020227,176.77,176.76,9.08]
[1748392376295,15.80020227,176.77,176.76,43.86]
[1748392376414,19.79414092,176.82,176.76,43.86]
[1748392376614,19.79414092,176.82,176.76,132.86]
[1748392376839,15.80020227,176.79,176.76,132.86]
[1748392377527,19.79414092,176.82,176.76,132.86]
[1748392377528,14.13867209,176.82,176.76,132.86]
[1748392377733,15.80020227,176.8,176.77,34.78]
[1748392378068,15.80020227,176.79,176.77,34.78]
[1748392380059,5.6567485,176.78,176.77,123.78]
[1748392383364,21.45695077,176.78,176.77,123.78]
[1748392384652,14.13867209,176.82,176.77,123.78]
[1748392384653,21.45665268,176.79,176.77,123.78]
[1748392385344,62.72315151,176.85,176.77,123.78]
[1748392385345,14.1363225,176.85,176.77,123.78]
[1748392385560,15.80020227,176.82,176.77,123.78]
[1748392386369,15.80020227,176.82,176.78,0.14216157]
[1748392386758,18.64964886,176.9,176.81,26.0]
[1748392387069,15.76678682,176.91,176.83,0.14216157]
[1748392387070,15.80020227,176.88,176.83,0.14216157]
[1748392387659,15.80020227,176.88,176.83,5.7972274]
[1748392388041,15.80020227,176.87,176.83,0.14216157]
[1748392388247,15.80020227,176.86,176.83,0.14216157]
[1748392388459,15.80020227,176.85,176.82,158.86]
[1748392389439,15.80020227,176.86,176.82,158.86]
[1748392389748,15.80020227,176.87,176.83,0.14216157]
[1748392392256,21.45408753,176.87,176.83,0.14216157]
[1748392393453,15.80020227,176.86,176.83,0.14216157]
[1748392393771,21.4545401,176.86,176.83,0.14216157]
[1748392395061,21.4545401,176.86,176.82,69.86]
[1748392397355,5.65433783,176.86,176.82,69.86]
[1748392398843,5.65433783,176.86,176.83,69.86]
[1748392399162,21.4545401,176.86,176.83,69.86]
[1748392401078,21.4545401,176.86,176.84,34.78]
[1748392403771,21.4545401,176.86,176.84,123.78]
[1748392403965,19.78336577,176.92,176.84,123.78]
[1748392404269,15.80020227,176.88,176.84,123.78]
[1748392405062,5.65387007,176.87,176.84,123.78]
[1748392405756,21.45386925,176.88,176.84,123.78]
[1748392406576,15.80020227,176.87,176.84,123.78]
[1748392407288,21.4542422,176.87,176.84,123.78]
[1748392409469,21.4542422,176.87,176.84,34.78]
[1748392410580,15.80020227,176.85,176.84,34.78]
[1748392411158,15.80020227,176.85,176.84,34.76]
[1748392411566,21.45471174,176.85,176.83,9.08]
[1748392411783,15.80020227,176.84,176.83,9.08]
[1748392413769,21.45503149,176.84,176.83,9.08]
[1748392419885,47.45503149,176.84,176.83,9.08]
[1748392427514,21.45503149,176.84,176.83,9.08]
[1748392430997,40.10468035,176.84,176.83,9.08]
[1748392431225,18.64964886,176.83,176.76,26.0]
[1748392431526,18.64964886,176.83,176.78,9.06]
[1748392432318,18.64964886,176.81,176.78,9.06]
[1748392432705,15.80020227,176.79,176.78,9.06]
[1748392433953,18.64964886,176.78,176.73,9.06]
[1748392434104,15.80020227,176.74,176.73,9.06]
[1748392434308,21.45823101,176.74,176.73,9.06]
[1748392435854,15.80020227,176.76,176.73,9.06]
[1748392436389,15.80020227,176.75,176.73,9.06]
[1748392437862,15.80020227,176.74,176.73,9.06]
[1748392438519,21.45823101,176.74,176.73,43.82]
[1748392439114,21.45823101,176.74,176.73,9.06]
[1748392442951,5.6577609,176.75,176.73,9.06]
[1748392443158,15.80020227,176.74,176.73,9.06]
[1748392445287,21.45823101,176.74,176.73,9.06]
[1748392446151,5.65642853,176.79,176.73,9.06]
[1748392446471,15.80020227,176.75,176.73,9.06]
[1748392450152,15.80020227,176.76,176.73,9.06]
[1748392451776,15.80020227,176.77,176.75,26.0]
[1748392452079,15.80020227,176.78,176.76,34.76]
[1748392453992,15.80020227,176.79,176.76,34.76]
[1748392455257,21.45664946,176.79,176.76,34.76]
[1748392455978,20.26934886,176.84,176.76,34.76]
[1748392456151,15.80020227,176.8,176.76,34.76]
[1748392457952,21.45635943,176.8,176.76,34.76]
[1748392459186,19.79302154,176.83,176.77,34.76]
[1748392459363,15.80020227,176.78,176.77,34.76]
[1748392460768,15.80020227,176.78,176.73,9.06]
[1748392460970,15.80020227,176.75,176.74,34.76]
[1748392461285,15.80020227,176.76,176.74,34.76]
[1748392461581,15.80020227,176.75,176.73,35.06]
[1748392461782,15.80020227,176.74,176.73,9.06]
[1748392462087,15.80020227,176.74,176.73,43.82]
[1748392462660,15.80020227,176.75,176.73,43.82]
[1748392463266,15.80020227,176.77,176.73,43.82]
[1748392463980,15.80020227,176.76,176.73,43.82]
[1748392464192,15.80020227,176.76,176.73,9.06]
[1748392464364,15.80020227,176.75,176.74,34.76]
[1748392465377,21.45791089,176.75,176.74,34.76]
[1748392468205,15.80020227,176.75,176.74,34.76]
[1748392468485,21.4576922,176.76,176.74,34.76]
[1748392469186,15.80020227,176.75,176.74,34.76]
[1748392469391,15.80020227,176.75,176.74,34.74]
[1748392470267,21.45791089,176.75,176.74,34.74]
[1748392470469,21.45791089,176.75,176.73,9.06]
[1748392470667,15.80020227,176.74,176.73,9.06]
[1748392470969,5.65770862,176.75,176.73,9.06]
[1748392471474,15.80020227,176.74,176.73,9.06]
[1748392471787,21.45791089,176.75,176.73,9.06]
[1748392472699,15.80020227,176.74,176.73,9.06]
[1748392474966,21.45823101,176.74,176.73,9.06]
[1748392477083,21.45823101,176.74,176.73,43.8]
[1748392477795,21.45823101,176.74,176.73,9.06]
[1748392482286,21.45823101,176.74,176.71,7.30453209]
[1748392482602,15.80020227,176.72,176.71,7.30453209]
[1748392483386,21.45887135,176.72,176.71,7.30453209]
[1748392484803,54.25519291,176.72,176.68,9.06]
[1748392484981,15.80020227,176.69,176.68,9.06]
[1748392486709,35.60890678,176.69,176.63,9.06]
[1748392486891,19.80870451,176.69,176.64,34.74]
[1748392487096,15.80020227,176.65,176.64,34.74]
[1748392488108,5.66123188,176.64,176.63,9.06]
[1748392488413,5.66123188,176.64,176.63,43.8]
[1748392489413,21.46143415,176.64,176.63,43.8]
[1748392489584,5.66123188,176.64,176.63,43.8]
[1748392489788,21.46143415,176.64,176.63,43.8]
[1748392490511,21.46143415,176.64,176.63,9.06]
[1748392490707,21.46143415,176.64,176.63,43.8]
[1748392491204,21.46143415,176.64,176.63,9.06]
[1748392492898,35.61451386,176.64,176.58,9.04]
[1748392493097,15.80020227,176.59,176.58,9.04]
[1748392493306,15.80020227,176.59,176.58,43.78]
[1748392493603,15.80020227,176.59,176.58,9.04]
[1748392495393,21.46303708,176.59,176.58,43.8]
[1748392500109,14.15280657,176.65,176.58,43.8]
[1748392500301,5.66123188,176.64,176.58,49.4630818]
[1748392500506,15.80020227,176.63,176.58,49.4630818]
[1748392500702,15.80020227,176.63,176.58,43.8]
[1748392501095,15.80020227,176.62,176.58,43.8]
[1748392501312,15.80020227,176.59,176.58,9.04]
[1748392502302,21.46303708,176.59,176.58,9.04]
[1748392502889,21.46303708,176.59,176.58,43.8]
[1748392503092,21.46303708,176.59,176.58,9.04]
[1748392505605,37.26323935,176.59,176.58,9.04]
[1748392506530,21.46303708,176.59,176.58,9.04]
[1748392507028,21.46303708,176.59,176.55,11.41996143]
[1748392507029,35.62012411,176.59,176.55,11.41996143]
[1748392507190,15.80020227,176.56,176.55,11.41996143]
[1748392508396,21.46399927,176.56,176.55,11.41996143]
[1748392516205,21.46399927,176.56,176.53,9.04]
[1748392516414,15.80020227,176.54,176.53,9.04]
[1748392518808,21.46464092,176.54,176.53,9.04]
[1748392524626,5.66443865,176.54,176.53,9.04]
[1748392524827,18.64964886,176.62,176.53,9.04]
[1748392525011,15.80020227,176.57,176.53,9.04]
[1748392525327,5.66443865,176.54,176.53,9.04]
[1748392526210,21.46464092,176.54,176.53,9.04]
[1748392529233,5.66443865,176.54,176.53,9.04]
[1748392529454,14.15860873,176.58,176.53,9.04]
[1748392529742,15.80020227,176.55,176.53,9.04]
[1748392531026,5.66443865,176.54,176.53,9.04]
[1748392531733,21.46430226,176.56,176.53,9.04]
[1748392532120,5.66409999,176.56,176.53,9.04]
[1748392532545,5.66251415,176.6,176.53,98.04]
[1748392532722,15.80020227,176.59,176.53,98.04]
[1748392533137,5.66315551,176.58,176.53,98.04]
[1748392533545,5.66251415,176.6,176.55,1.5796]
[1748392533749,5.66155239,176.63,176.57,26.0]
[1748392534122,5.66155239,176.63,176.59,26.0]
[1748392534326,5.66155239,176.63,176.6,43.8]
[1748392535045,5.65962986,176.69,176.62,27.6125]
[1748392535219,21.45983213,176.69,176.62,27.6125]
[1748392535821,15.80020227,176.68,176.62,27.6125]
[1748392536544,15.80020227,176.67,176.62,27.6125]
[1748392536726,19.80870451,176.69,176.63,34.74]
[1748392536727,15.80020227,176.65,176.63,34.74]
[1748392537336,5.66123188,176.64,176.63,34.74]
[1748392537918,21.46143415,176.64,176.63,34.74]
[1748392538135,5.66123188,176.64,176.63,34.74]
[1748392539350,14.15038444,176.68,176.63,34.74]
[1748392539724,15.80020227,176.66,176.63,34.74]
[1748392542651,5.6609114,176.65,176.63,34.74]
[1748392546242,21.46111367,176.65,176.63,34.74]
[1748392549244,15.80020227,176.66,176.63,34.74]
[1748392549758,15.80020227,176.67,176.63,34.74]
[1748392549931,29.95058671,176.68,176.63,123.74]
[1748392550138,29.95058671,176.68,176.64,9.04]
[1748392550354,29.95058671,176.68,176.64,98.04]
[1748392551355,35.6105369,176.68,176.64,98.04]
[1748392553652,15.80020227,176.67,176.64,98.04]
[1748392554634,5.66059096,176.66,176.64,98.04]
[1748392554830,21.46079323,176.66,176.64,98.04]
[1748392555036,15.80020227,176.65,176.64,132.76]
[1748392555637,5.66059096,176.66,176.64,132.76]
[1748392558038,21.46079323,176.66,176.64,132.76]
[1748392558543,15.80020227,176.66,176.64,132.76]
[1748392559351,15.80020227,176.65,176.64,132.76]
[1748392560634,21.46111367,176.65,176.64,43.76]
[1748392561936,21.46111367,176.65,176.64,9.04]
[1748392562448,18.64964886,176.64,176.59,9.02]
[1748392562651,15.80020227,176.6,176.59,9.02]
[1748392562838,15.80020227,176.61,176.59,9.02]
[1748392563155,19.81318991,176.65,176.59,9.02]
[1748392563361,15.80020227,176.62,176.59,9.02]
[1748392564081,5.66187294,176.62,176.59,9.02]
[1748392564939,21.46207521,176.62,176.59,9.02]
[1748392565175,15.80020227,176.6,176.59,9.02]
[1748392566046,14.15442868,176.63,176.59,9.02]
[1748392566254,29.95463095,176.63,176.59,9.02]
[1748392566637,15.80020227,176.62,176.59,9.02]
[1748392568138,15.80020227,176.61,176.59,9.02]
[1748392568340,15.80020227,176.6,176.59,9.02]
[1748392569540,14.15442868,176.63,176.59,9.02]
[1748392569739,15.80020227,176.63,176.59,9.02]
[1748392569951,5.6609114,176.65,176.59,9.02]
[1748392570146,15.80020227,176.64,176.59,98.02]
[1748392570756,5.66155239,176.63,176.59,98.02]
[1748392571765,14.15045902,176.68,176.6,0.14216157]
[1748392571956,15.80020227,176.67,176.6,0.14216157]
[1748392572269,15.80020227,176.67,176.6,89.14216157]
[1748392572839,5.66059096,176.66,176.6,89.14216157]
[1748392575682,5.66059096,176.66,176.62,0.14216157]
[1748392575872,5.66059096,176.66,176.63,60.72]
[1748392576078,5.66059096,176.66,176.63,149.72]
[1748392577247,5.66059096,176.66,176.6,89.0]
[1748392577248,15.80020227,176.64,176.6,89.0]
[1748392577483,15.80020227,176.64,176.61,34.72]
[1748392577685,15.80020227,176.65,176.61,34.72]
[1748392577982,21.46079323,176.66,176.61,34.72]
[1748392578146,5.66059096,176.66,176.61,34.72]
[1748392579191,5.66027056,176.67,176.61,34.72]
[1748392581496,5.66027056,176.67,176.61,123.72]
[1748392581646,21.46047283,176.67,176.61,123.72]
[1748392581854,21.46047283,176.67,176.62,9.02]
[1748392582274,15.80020227,176.65,176.62,9.02]
[1748392582468,15.80020227,176.64,176.63,34.72]
[1748392583279,15.80020227,176.65,176.63,34.72]
[1748392583780,5.66123188,176.64,176.63,34.72]
[1748392583983,21.46143415,176.64,176.62,9.02]
[1748392584185,15.80020227,176.63,176.62,43.74]
[1748392584378,21.46143415,176.64,176.62,43.74]
[1748392584683,15.80020227,176.63,176.62,43.74]
[1748392585776,21.46175466,176.63,176.62,43.74]
[1748392588269,21.46175466,176.63,176.62,9.02]
[1748392588473,21.46175466,176.63,176.62,43.74]
[1748392588893,21.46175466,176.63,176.62,9.02]
[1748392589183,63.92339763,176.63,176.57,9.02]
[1748392589371,15.80020227,176.58,176.57,9.02]
[1748392589685,15.80020227,176.58,176.57,43.74]
[1748392589872,21.46335778,176.58,176.57,43.74]
[1748392590477,21.46335778,176.58,176.57,9.02]
[1748392594083,5.66315551,176.58,176.57,9.02]
[1748392594300,21.46335778,176.58,176.57,9.02]
[1748392596205,5.66315551,176.58,176.57,9.02]
[1748392596389,21.46335778,176.58,176.57,9.02]
[1748392600092,15.80020227,176.58,176.57,9.02]
[1748392601108,21.46335778,176.58,176.57,9.02]
[1748392601886,5.66262711,176.6,176.57,9.02]
[1748392602508,21.46282938,176.6,176.57,9.02]
[1748392606503,5.66262711,176.6,176.57,9.02]
[1748392606922,21.46282938,176.6,176.57,9.02]
[1748392607602,5.66262711,176.6,176.57,9.02]
[1748392608506,15.80020227,176.61,176.57,9.02]
[1748392609312,5.66123188,176.64,176.57,98.02]
[1748392609813,15.80020227,176.63,176.57,98.02]
[1748392610002,5.66123188,176.64,176.57,98.02]
[1748392610318,15.80020227,176.62,176.57,98.02]
[1748392610822,5.66219353,176.61,176.57,98.02]
[1748392614491,5.66187294,176.62,176.57,99.5638]
[1748392614906,19.811626,176.67,176.58,44.79181043]
[1748392615417,5.66027056,176.67,176.58,44.79181043]
[1748392615919,21.46047283,176.67,176.58,44.79181043]
[1748392616100,5.66027056,176.67,176.58,280.49181043]
[1748392616298,5.66027056,176.67,176.58,294.70798008]
[1748392616493,5.65962986,176.69,176.63,26.0]
[1748392616699,5.65962986,176.69,176.64,43.72]
[1748392617597,19.80422112,176.73,176.64,43.72]
[1748392617904,35.60442339,176.73,176.66,26.0]
[1748392618700,5.65834889,176.73,176.67,0.14216157]
[1748392618932,5.65834889,176.73,176.68,34.7]
[1748392619098,5.65834889,176.73,176.68,123.7]
[1748392620112,5.65802874,176.74,176.68,123.7]
[1748392620324,5.65802874,176.74,176.69,0.14216157]
[1748392620512,5.65802874,176.74,176.7,9.02]
[1748392621426,19.80131935,176.76,176.7,9.02]
[1748392621821,5.65738854,176.76,176.7,98.02]
[1748392623013,15.80020227,176.75,176.7,98.02]
[1748392623215,15.80020227,176.73,176.7,98.02]
[1748392623419,5.65866908,176.72,176.71,34.7]
[1748392624234,15.80020227,176.74,176.71,34.7]
[1748392625534,48.07692306,176.8,176.71,34.7]
[1748392625706,15.80020227,176.74,176.71,123.7]
[1748392625911,15.80020227,176.72,176.7,9.02]
[1748392626111,15.80020227,176.71,176.7,9.02]
[1748392626328,15.80020227,176.71,176.7,43.72]
[1748392626629,15.80020227,176.71,176.7,9.02]
[1748392627038,21.45919157,176.71,176.7,9.02]
[1748392634123,21.45919157,176.71,176.68,9.00702769]
[1748392634315,15.80020227,176.69,176.68,9.00702769]
[1748392635341,15.80020227,176.69,176.65,9.02]
[1748392635342,5.65995019,176.68,176.65,9.02]
[1748392635531,15.80020227,176.66,176.65,9.02]
[1748392636426,26.0,176.66,176.65,9.02]
[1748392636725,41.80020227,176.66,176.65,9.02]
[1748392637139,21.46079323,176.66,176.65,9.02]
[1748392640964,5.66059096,176.66,176.65,9.02]
[1748392641344,21.46079323,176.66,176.65,9.02]
[1748392641845,5.66038452,176.67,176.65,9.02]
[1748392642157,15.80020227,176.69,176.66,34.68]
[1748392642360,15.80020227,176.7,176.66,34.68]
[1748392642552,5.65962986,176.69,176.66,123.68]
[1748392644149,5.6589893,176.71,176.67,18.64964886]
[1748392644528,5.65834889,176.73,176.68,0.14216157]
[1748392644740,5.65770862,176.75,176.7,0.14216157]
[1748392644942,5.65770862,176.75,176.71,43.7]
[1748392645447,21.45791089,176.75,176.71,43.7]
[1748392647351,5.65770862,176.75,176.71,43.7]
[1748392648461,15.80020227,176.73,176.71,43.7]
[1748392648670,15.80020227,176.72,176.71,9.02]
[1748392648830,15.80020227,176.73,176.71,43.7]
[1748392649041,15.80020227,176.74,176.71,43.7]
[1748392649236,19.80198019,176.75,176.71,43.7]
[1748392649549,5.65770862,176.75,176.71,43.7]
[1748392649745,21.45791089,176.75,176.71,43.7]
[1748392650750,15.80020227,176.74,176.71,43.7]
[1748392651641,15.80020227,176.73,176.71,43.7]
[1748392652838,5.65866908,176.72,176.71,43.7]
[1748392653033,21.45887135,176.72,176.71,9.02]
[1748392653238,21.45887135,176.72,176.71,43.7]
[1748392653663,5.65866908,176.72,176.71,43.7]
[1748392656752,15.80020227,176.72,176.71,43.7]
[1748392657064,15.80020227,176.72,176.71,9.02]
[1748392658554,21.45887135,176.72,176.71,9.02]
[1748392660657,5.65866908,176.72,176.71,9.02]
[1748392664278,5.65802874,176.74,176.71,9.02]
[1748392664580,5.65802874,176.74,176.71,98.02]
[1748392665646,21.45759081,176.76,176.71,98.02]
[1748392666060,15.80020227,176.75,176.71,98.02]
[1748392667062,35.60106218,176.76,176.71,98.02]
[1748392667263,5.65738854,176.76,176.71,98.02]
[1748392667464,5.65738854,176.76,176.71,124.02]
[1748392672556,21.45759081,176.76,176.71,124.02]
[1748392672752,15.80020227,176.75,176.71,124.02]
[1748392673060,35.60106218,176.76,176.71,124.02]
[1748392676260,15.80020227,176.75,176.71,124.02]
[1748392676477,15.80020227,176.75,176.72,34.66]
[1748392676873,15.80020227,176.75,176.73,9.0]
[1748392677790,35.60106218,176.76,176.73,9.0]
[1748392679487,35.60106218,176.76,176.74,34.66]
[1748392680590,15.80020227,176.75,176.74,34.66]
[1748392681162,35.60106218,176.76,176.74,34.66]
[1748392681359,5.65738854,176.76,176.74,34.66]
[1748392681783,15.80020227,176.75,176.74,34.66]
[1748392681964,21.45791089,176.75,176.74,34.66]
[1748392682166,21.45791089,176.75,176.73,9.0]
[1748392682365,15.80020227,176.74,176.73,9.0]
[1748392684114,21.45823101,176.74,176.73,9.0]
[1748392684598,5.65802874,176.74,176.73,9.0]
[1748392684795,21.45823101,176.74,176.73,9.0]
[1748392689393,35.60330286,176.74,176.69,34.66]
[1748392689594,15.80020227,176.7,176.68,43.66]
[1748392689906,15.80020227,176.69,176.68,43.66]
[1748392690697,15.80020227,176.7,176.68,43.66]
[1748392690998,41.80020227,176.76,176.68,43.66]
[1748392690999,5.65962986,176.69,176.68,43.66]
[1748392692397,5.6589893,176.71,176.68,43.66]
[1748392693105,15.80020227,176.76,176.69,18.79181043]
[1748392694295,21.45823101,176.74,176.68,132.66]
[1748392694702,35.60330286,176.74,176.68,132.66]
[1748392694871,19.80310059,176.74,176.68,132.66]
[1748392695076,35.60330286,176.74,176.68,132.66]
[1748392695585,35.60330286,176.74,176.69,34.66]
[1748392696806,35.60330286,176.74,176.69,123.66]
[1748392699207,19.80310059,176.74,176.69,123.66]
[1748392699403,5.65802874,176.74,176.69,123.66]
[1748392700107,21.45823101,176.74,176.69,123.66]
[1748392700984,35.60330286,176.74,176.69,123.66]
[1748392701228,15.80020227,176.7,176.69,89.0]
[1748392701397,15.80020227,176.7,176.68,9.0]
[1748392701590,15.80020227,176.69,176.68,9.0]
[1748392702793,15.80020227,176.69,176.66,9.16528193]
[1748392703005,15.80020227,176.67,176.66,9.16528193]
[1748392703210,21.46047283,176.67,176.66,9.16528193]
[1748392706396,35.61114923,176.67,176.63,43.66]
[1748392706643,15.80020227,176.64,176.63,9.0]
[1748392707318,21.46143415,176.64,176.63,9.0]
[1748392715715,5.66123188,176.64,176.63,9.0]
[1748392717013,15.80020227,176.64,176.63,9.0]
[1748392718534,21.46143415,176.64,176.63,9.0]
[1748392722635,21.46143415,176.64,176.62,34.68]
[1748392722831,15.80020227,176.63,176.62,34.68]
[1748392724030,21.46175466,176.63,176.62,34.68]
[1748392724428,21.46175466,176.63,176.61,34.68]
[1748392724605,15.80020227,176.62,176.61,34.68]
[1748392726232,5.66219353,176.61,176.6,9.0]
[1748392726439,21.4623958,176.61,176.6,43.68]
[1748392726811,21.4623958,176.61,176.6,9.0]
[1748392727019,21.4623958,176.61,176.6,43.68]
[1748392727336,5.66219353,176.61,176.57,115.0]
[1748392728514,5.66187294,176.62,176.58,43.68]
[1748392728735,21.46207521,176.62,176.58,43.68]
[1748392732241,21.46207521,176.62,176.58,132.68]
[1748392732643,21.46207521,176.62,176.59,9.0]
[1748392737430,21.46207521,176.62,176.6,9.0]
[1748392738443,5.66187294,176.62,176.6,9.0]
[1748392740126,15.80020227,176.62,176.6,9.0]
[1748392740446,48.10685381,176.69,176.6,9.0]
[1748392740629,15.80020227,176.62,176.6,9.0]
[1748392741768,15.80020227,176.61,176.6,9.0]
[1748392742439,21.4623958,176.61,176.6,9.0]
[1748392745025,63.92884729,176.61,176.56,89.0]
[1748392745245,15.80020227,176.57,176.55,34.68]
[1748392745438,15.80020227,176.56,176.55,34.68]
[1748392746850,21.46399927,176.56,176.54,9.0]
[1748392748252,15.80020227,176.55,176.54,9.0]
[1748392750352,21.46432008,176.55,176.54,9.0]
[1748392752448,21.46432008,176.55,176.52,13.21799601]
[1748392752653,15.80020227,176.53,176.49,9.0]
[1748392752857,15.80020227,176.5,176.49,9.0]
[1748392754439,19.82441234,176.55,176.49,9.0]
[1748392754639,15.80020227,176.5,176.49,9.0]
[1748392755930,74.1450014,176.55,176.44,9.0]
[1748392756125,15.80020227,176.48,176.45,34.68]
[1748392756936,5.66668555,176.47,176.45,34.68]
[1748392761269,5.66636446,176.48,176.45,34.68]
[1748392761463,21.54473751,176.48,176.45,34.68]
[1748392762065,35.71064866,176.48,176.44,24.87837305]
[1748392762375,35.71064866,176.48,176.45,34.68]
[1748392763047,19.83227561,176.48,176.45,34.68]
[1748392764180,19.83227561,176.48,176.44,24.87837305]
[1748392764181,15.87837305,176.46,176.44,9.0]
[1748392764468,15.87837305,176.45,176.41,89.0]
[1748392764675,15.87837305,176.43,176.4,116.14]
[1748392764836,15.87837305,176.43,176.4,81.46]
[1748392765036,48.16409791,176.48,176.39,9.0]
[1748392765238,15.87837305,176.41,176.39,9.0]
[1748392765478,48.16409791,176.48,176.39,9.0]
[1748392765479,15.87837305,176.4,176.39,9.0]
[1748392765645,15.87837305,176.4,176.34,9.0]
[1748392765980,15.87837305,176.36,176.34,9.0]
[1748392766275,5.67054153,176.35,176.34,9.0]
[1748392766864,14.17090151,176.42,176.34,9.0]
[1748392767063,15.87837305,176.4,176.38,26.0]
[1748392767277,5.66861289,176.41,176.38,26.0]
[1748392767568,15.87837305,176.39,176.38,26.0]
[1748392768473,5.66861289,176.41,176.37,41.87837305]
[1748392769670,5.66861289,176.41,176.38,15.87837305]
[1748392770177,5.66861289,176.41,176.39,15.87837305]
[1748392770571,5.66829157,176.42,176.39,15.87837305]
[1748392770779,5.66829157,176.42,176.37,34.7]
[1748392770780,5.66829157,176.42,176.38,15.87837305]
[1748392773410,30.04856325,176.43,176.39,15.87837305]
[1748392774488,30.04856325,176.43,176.38,15.87837305]
[1748392774878,30.04856325,176.43,176.39,15.87837305]
[1748392775283,35.71653354,176.43,176.39,15.87837305]
[1748392775791,5.66797029,176.43,176.41,15.87837305]
[1748392775993,5.66797029,176.43,176.42,15.87837305]
[1748392777102,5.66797029,176.43,176.41,15.87837305]
[1748392777470,5.66764905,176.44,176.41,15.87837305]
[1748392778609,19.83677169,176.44,176.42,15.87837305]
[1748392778779,19.83677169,176.44,176.41,15.87837305]
[1748392780071,64.05339003,176.44,176.39,15.87837305]
[1748392780403,15.87837305,176.41,176.37,15.87837305]